fUSD/lending_fUSD_20250112
["ID","MTS","AMOUNT","RATE_DAILY","PERIOD"]
[348657701,1736700672055,-1074.26,0.00010705,2]
[348657702,1736700672064,-3653.37,0.00010705,2]
[348657703,1736700672074,-880.69,0.00010705,2]
[348657704,1736700672083,-896.33,0.00010705,2]
[348657705,1736700672092,-1087.03,0.00010705,2]
[348657706,1736700672102,-3000.0,0.0001073,2]
[348657707,1736700672111,-2594.78984519,0.00010748,2]
[348657708,1736700672123,-3000.0,0.0001077,2]
[348657709,1736700672132,-170.5870911,0.00010793,2]
[348657710,1736700672141,-982.77188825,0.000108,2]
[348657711,1736700672150,-3000.0,0.0001081,2]
[348657712,1736700672160,-8570.07,0.00010819,2]
[348657713,1736700672169,-500.0,0.0001082,2]
[348657714,1736700672178,-500.0,0.0001082,2]
[348657715,1736700672187,-500.0,0.0001082,2]
[348657716,1736700672197,-500.0,0.0001082,2]
[348657717,1736700672207,-500.0,0.0001082,2]
[348657718,1736700672216,-500.0,0.0001082,2]
[348657719,1736700672226,-500.0,0.0001082,2]
[348657720,1736700672235,-429.85393,0.00010864,2]
[348657721,1736700672248,-990.02671162,0.00010879,2]
[348657722,1736700672259,-2594.78984519,0.00010883,2]
[348657723,1736700672268,-284.0,0.00010886,2]
[348657724,1736700672277,-500.0,0.00010892,2]
[348657725,1736700672286,-1647.89,0.00010892,2]
[348657726,1736700672296,-1216.98,0.00010892,2]
[348657727,1736700672306,-1642.15,0.00010892,2]
[348657728,1736700672317,-1552.57,0.00010892,2]
[348657729,1736700672326,-2412.19,0.00010892,2]
[348657730,1736700672336,-1676.33,0.00010892,2]
[348657731,1736700672345,-612.31,0.00010893,2]
[348657732,1736700672355,-769.55,0.00010893,2]
[348657733,1736700672364,-851.37,0.00010893,2]
[348657734,1736700672373,-500.0,0.00010893,2]
[348657735,1736700672382,-805.83,0.00010893,2]
[348657736,1736700672392,-710.15,0.00010893,2]
[348657737,1736700672401,-571.57,0.00010893,2]
[348657738,1736700672411,-863.48,0.00010893,2]
[348657739,1736700672420,-500.0,0.00010893,2]
[348657740,1736700672429,-500.0,0.00010893,2]
[348657741,1736700672439,-564.88,0.00010893,2]
[348657742,1736700672449,-500.0,0.00010893,2]
[348657743,1736700672459,-1134.97,0.00010893,2]
[348657744,1736700672469,-719.69,0.00010893,2]
[348657745,1736700672479,-1035.91,0.00010893,2]
[348657746,1736700672489,-500.0,0.00010893,2]
[348657747,1736700672499,-1188.05,0.00010893,2]
[348657748,1736700672508,-500.0,0.00010893,2]
[348657749,1736700672519,-500.0,0.00010893,2]
[348657750,1736700672528,-500.0,0.00010893,2]
[348657751,1736700672537,-826.63,0.00010893,2]
[348657752,1736700672547,-500.0,0.00010893,2]
[348657753,1736700672556,-500.0,0.00010893,2]
[348657754,1736700672566,-500.0,0.00010893,2]
[348657755,1736700672575,-1332.99,0.00010893,2]
[348657756,1736700672585,-2129.44,0.00010893,2]
[348657757,1736700672594,-1803.19,0.00010893,2]
[348657758,1736700672603,-921.13,0.00010893,2]
[348657759,1736700672613,-3426.96,0.00010893,2]
[348657760,1736700672623,-5530.95,0.00010893,2]
[348657761,1736700672632,-961.2,0.00010893,2]
[348657762,1736700672642,-2395.68,0.00010893,2]
[348657763,1736700672651,-500.0,0.00010894,2]
[348657764,1736700672660,-1057.87,0.00010894,2]
[348657765,1736700672670,-1317.16,0.00010894,2]
[348657766,1736700672679,-2340.15,0.00010894,2]
[348657767,1736700672689,-765.83,0.00010894,2]
[348657768,1736700672698,-1000.0,0.00010894,2]
[348657769,1736700672711,-1163.11,0.00010894,2]
[348657770,1736700672720,-500.0,0.00010894,2]
[348657771,1736700672730,-2753.59,0.00010894,2]
[348657772,1736700672740,-939.60940394,0.00010899,2]
[348657773,1736700672750,-271.20615611,0.00010899,2]
[348657774,1736700672759,-730.60427234,0.000109,2]
[348657775,1736700672769,-730.60427234,0.000109,2]
[348657776,1736700672779,-730.60427234,0.000109,2]
[348657777,1736700672788,-730.60427234,0.000109,2]
[348657778,1736700672798,-738.81,0.00010916,2]
[348657779,1736700672808,-500.0,0.00010916,2]
[348657780,1736700672818,-999.9,0.00010916,2]
[348657781,1736700672828,-658.7,0.00010916,2]
[348657782,1736700672838,-852.49,0.00010916,2]
[348657783,1736700672847,-563.58,0.00010916,2]
[348657784,1736700672857,-500.0,0.00010916,2]
[348657785,1736700672866,-500.0,0.00010916,2]
[348657786,1736700672876,-690.64,0.00010916,2]
[348657787,1736700672885,-500.0,0.00010916,2]
[348657788,1736700672895,-857.17,0.00010916,2]
[348657789,1736700673046,-674.27,0.00010916,2]
[348657790,1736700673086,-500.0,0.00010916,2]
[348657791,1736700673097,-999.58,0.00010916,2]
[348657792,1736700673106,-500.0,0.00010916,2]
[348657793,1736700673116,-690.05,0.00010916,2]
[348657794,1736700673130,-833.44,0.00010916,2]
[348657795,1736700673139,-500.0,0.00010916,2]
[348657796,1736700673148,-988.81,0.00010916,2]
[348657797,1736700673159,-668.15,0.00010916,2]
[348657798,1736700673169,-779.2,0.00010916,2]
[348657799,1736700673179,-500.0,0.00010916,2]
[348657800,1736700673189,-500.0,0.00010916,2]
[348657801,1736700673199,-1054.74,0.00010916,2]
[348657802,1736700673210,-500.0,0.00010916,2]
[348657803,1736700673219,-500.0,0.00010916,2]
[348657804,1736700673229,-748.93,0.00010916,2]
[348657805,1736700673238,-500.0,0.00010916,2]
[348657806,1736700673249,-500.0,0.00010916,2]
[348657807,1736700673259,-922.61,0.00010916,2]
[348657808,1736700673269,-500.0,0.00010916,2]
[348657809,1736700673279,-500.0,0.00010916,2]
[348657810,1736700673290,-584.82,0.00010916,2]
[348657811,1736700673299,-500.0,0.00010916,2]
[348657812,1736700673309,-893.62,0.00010916,2]
[348657813,1736700673319,-1058.98,0.00010916,2]
[348657814,1736700673329,-500.0,0.00010916,2]
[348657815,1736700673338,-2993.24,0.00010916,2]
[348657816,1736700673348,-278.02886135,0.00010916,2]
[348657817,1736700673359,-500.0,0.00010916,2]
[348657818,1736700673368,-1131.37,0.00010916,2]
[348657819,1736700673380,-2622.41,0.00010916,2]
[348657820,1736700673390,-500.0,0.00010916,2]
[348657821,1736700673399,-715.88,0.00010916,2]
[348657822,1736700673409,-8282.98,0.00010916,2]
[348657823,1736700673419,-838.98,0.00010916,2]
[348657824,1736700673428,-675.17,0.00010916,2]
[348657825,1736700673438,-776.6,0.00010916,2]
[348657826,1736700673448,-500.0,0.00010916,2]
[348657827,1736700673457,-903.59,0.00010916,2]
[348657828,1736700673468,-500.0,0.00010916,2]
[348657829,1736700673478,-1097.27,0.00010916,2]
[348657830,1736700673488,-612.54,0.00010916,2]
[348657831,1736700673497,-565.39,0.00010916,2]
[348657832,1736700673507,-2321.77,0.00010916,2]
[348657833,1736700673517,-1025.55,0.00010916,2]
[348657834,1736700673526,-500.0,0.00010916,2]
[348657835,1736700673536,-2541.58,0.00010916,2]
[348657836,1736700673545,-500.0,0.00010916,2]
[348657837,1736700673555,-995.77,0.00010916,2]
[348657838,1736700673565,-3146.03,0.00010916,2]
[348657839,1736700673575,-2710.65,0.00010916,2]
[348657840,1736700673585,-500.0,0.00010916,2]
[348657841,1736700673594,-1355.79,0.00010916,2]
[348657842,1736700673604,-2113.09,0.00010916,2]
[348657843,1736700673614,-1415.81,0.00010916,2]
[348657844,1736700673624,-1050.88,0.00010916,2]
[348657845,1736700673634,-520.74,0.00010916,2]
[348657846,1736700673644,-1033.91,0.00010916,2]
[348657847,1736700673654,-1645.06,0.00010916,2]
[348657848,1736700673663,-500.0,0.00010916,2]
[348657849,1736700673673,-1289.53,0.00010916,2]
[348657850,1736700673683,-836.1,0.00010916,2]
[348657851,1736700673692,-969.41,0.00010916,2]
[348657852,1736700673702,-500.0,0.00010916,2]
[348657853,1736700673712,-3093.34,0.00010916,2]
[348657854,1736700673721,-594.39,0.00010916,2]
[348657855,1736700673731,-2376.04,0.00010916,2]
[348657856,1736700673741,-856.24,0.00010916,2]
[348657857,1736700673750,-500.0,0.00010916,2]
[348657858,1736700673759,-524.5,0.00010916,2]
[348657859,1736700673769,-1899.09,0.00010916,2]
[348657860,1736700673779,-708.5,0.00010916,2]
[348657861,1736700673788,-500.0,0.00010916,2]
[348657862,1736700673798,-1088.98,0.00010916,2]
[348657863,1736700673808,-1299.49,0.00010916,2]
[348657864,1736700673818,-640.31,0.00010916,2]
[348657865,1736700673828,-622.45,0.00010916,2]
[348657866,1736700673838,-925.99,0.00010916,2]
[348657867,1736700673847,-3185.36,0.00010916,2]
[348657868,1736700673857,-1827.76,0.00010916,2]
[348657869,1736700673867,-606.95,0.00010916,2]
[348657870,1736700673877,-545.89,0.00010916,2]
[348657871,1736700673887,-786.14,0.00010916,2]
[348657872,1736700673896,-833.22,0.00010916,2]
[348657873,1736700673907,-1861.57,0.00010916,2]
[348657874,1736700673916,-730.13,0.00010917,2]
[348657875,1736700673925,-500.0,0.00010917,2]
[348657876,1736700673935,-1651.99,0.00010917,2]
[348657877,1736700673944,-1264.25,0.00010917,2]
[348657878,1736700673954,-500.0,0.00010917,2]
[348657879,1736700673964,-978.875677,0.00010917,2]
[348657880,1736700673974,-464.16164061,0.00010917,2]
[348657881,1736700673983,-500.0,0.00010917,2]
[348657882,1736700673993,-500.0,0.00010917,2]
[348657883,1736700674002,-941.388041,0.00010917,2]
[348657884,1736700674011,-3861.07,0.00010917,2]
[348657885,1736700674021,-944.82,0.00010917,2]
[348657886,1736700674031,-500.0,0.00010917,2]
[348657887,1736700674040,-500.0,0.00010917,2]
[348657888,1736700674049,-1010.28,0.00010917,2]
[348657889,1736700674059,-597.28,0.00010917,2]
[348657890,1736700674069,-500.0,0.00010917,2]
[348657891,1736700674079,-574.1,0.00010917,2]
[348657892,1736700674088,-500.0,0.00010917,2]
[348657893,1736700674098,-978.99,0.00010917,2]
[348657894,1736700674108,-500.0,0.00010917,2]
[348657895,1736700674117,-500.0,0.00010917,2]
[348657896,1736700674130,-500.0,0.00010917,2]
[348657897,1736700674140,-500.0,0.00010917,2]
[348657898,1736700674149,-790.29,0.00010917,2]
[348657899,1736700674159,-500.0,0.00010917,2]
[348657900,1736700674168,-168.246032,0.00010917,2]
[348657901,1736700674178,-826.32,0.00010917,2]
[348657902,1736700674188,-816.75,0.00010917,2]
[348657903,1736700674198,-500.0,0.00010917,2]
[348657904,1736700674207,-500.0,0.00010917,2]
[348657905,1736700674219,-625.83,0.00010917,2]
[348657906,1736700674229,-655.22,0.00010917,2]
[348657907,1736700674239,-500.0,0.00010917,2]
[348657908,1736700674249,-206.16602027,0.00010917,2]
[348657909,1736700674259,-500.0,0.00010917,2]
[348657910,1736700674269,-3719.64,0.00010917,2]
[348657911,1736700674279,-659.3,0.00010917,2]
[348657912,1736700674288,-168.246029,0.00010917,2]
[348657913,1736700674298,-500.0,0.00010917,2]
[348657914,1736700674307,-500.0,0.00010917,2]
[348657915,1736700674317,-500.0,0.00010917,2]
[348657916,1736700674327,-500.0,0.00010917,2]
[348657917,1736700674336,-500.0,0.00010917,2]
[348657918,1736700674346,-516.68,0.00010917,2]
[348657919,1736700674355,-500.0,0.00010917,2]
[348657920,1736700674365,-500.0,0.00010917,2]
[348657921,1736700674375,-610.16,0.00010917,2]
[348657922,1736700674385,-500.0,0.00010917,2]
[348657923,1736700674395,-500.0,0.00010917,2]
[348657924,1736700674404,-544.28,0.00010917,2]
[348657925,1736700674414,-500.0,0.00010917,2]
[348657926,1736700674423,-553.68,0.00010917,2]
[348657927,1736700674433,-1214.34,0.00010917,2]
[348657928,1736700674443,-815.64,0.00010917,2]
[348657929,1736700674452,-684.62,0.00010917,2]
[348657930,1736700674462,-500.0,0.00010917,2]
[348657931,1736700674471,-932.52,0.00010917,2]
[348657932,1736700674481,-500.0,0.00010917,2]
[348657933,1736700674491,-500.0,0.00010917,2]
[348657934,1736700674501,-625.7,0.00010917,2]
[348657935,1736700674511,-500.0,0.00010917,2]
[348657936,1736700674520,-168.24603,0.00010917,2]
[348657937,1736700674529,-797.42,0.00010917,2]
[348657938,1736700674539,-721.16,0.00010917,2]
[348657939,1736700674547,-617.87,0.00010917,2]
[348657940,1736700674557,-500.0,0.00010917,2]
[348657941,1736700674566,-500.0,0.00010917,2]
[348657942,1736700674576,-779.4,0.00010917,2]
[348657943,1736700674585,-500.0,0.00010917,2]
[348657944,1736700674595,-500.0,0.00010917,2]
[348657945,1736700674604,-500.0,0.00010917,2]
[348657946,1736700674613,-756.66,0.00010917,2]
[348657947,1736700674623,-527.36,0.00010917,2]
[348657948,1736700674633,-500.0,0.00010917,2]
[348657949,1736700674642,-566.83,0.00010917,2]
[348657950,1736700674651,-507.66,0.00010917,2]
[348657951,1736700674661,-1148.17,0.00010917,2]
[348657952,1736700674670,-500.0,0.00010917,2]
[348657953,1736700674680,-697.58,0.00010917,2]
[348657954,1736700674689,-500.0,0.00010917,2]
[348657955,1736700674699,-500.0,0.00010917,2]
[348657956,1736700674708,-640.34,0.00010917,2]
[348657957,1736700674719,-1565.32,0.00010917,2]
[348657958,1736700674728,-500.0,0.00010917,2]
[348657959,1736700674738,-500.0,0.00010917,2]
[348657960,1736700674747,-641.6,0.00010917,2]
[348657961,1736700674757,-500.0,0.00010917,2]
[348657962,1736700674766,-500.0,0.00010917,2]
[348657963,1736700674776,-673.33,0.00010917,2]
[348657964,1736700674785,-500.0,0.00010917,2]
[348657965,1736700674795,-1691.98,0.00010917,2]
[348657966,1736700674805,-500.0,0.00010917,2]
[348657967,1736700674814,-844.22,0.00010917,2]
[348657968,1736700674823,-995.13,0.00010917,2]
[348657969,1736700674833,-500.0,0.00010917,2]
[348657970,1736700674842,-500.0,0.00010917,2]
[348657971,1736700674851,-500.0,0.00010917,2]
[348657972,1736700674861,-1416.54,0.00010917,2]
[348657973,1736700674870,-500.0,0.00010917,2]
[348657974,1736700674879,-500.0,0.00010917,2]
[348657975,1736700674889,-500.0,0.00010917,2]
[348657976,1736700674899,-629.73532637,0.00010917,2]
[348657977,1736700674908,-500.0,0.00010917,2]
[348657978,1736700674918,-609.49,0.00010917,2]
[348657979,1736700674927,-535.32,0.00010917,2]
[348657980,1736700674937,-1156.26,0.00010917,2]
[348657981,1736700674947,-500.0,0.00010917,2]
[348657982,1736700674956,-3288.63,0.00010917,2]
[348657983,1736700674966,-541.17641048,0.00010917,2]
[348657984,1736700674975,-951.77,0.00010917,2]
[348657985,1736700674985,-1332.25,0.00010917,2]
[348657986,1736700674994,-500.0,0.00010917,2]
[348657987,1736700675004,-1266.62,0.00010917,2]
[348657988,1736700675014,-1123.73,0.00010917,2]
[348657989,1736700675023,-500.0,0.00010917,2]
[348657990,1736700675034,-500.0,0.00010917,2]
[348657991,1736700675043,-649.23,0.00010917,2]
[348657992,1736700675053,-3743.22,0.00010917,2]
[348657993,1736700675062,-500.0,0.00010917,2]
[348657994,1736700675072,-500.0,0.00010917,2]
[348657995,1736700675082,-681.51,0.00010917,2]
[348657996,1736700675091,-500.0,0.00010917,2]
[348657997,1736700675101,-4103.02,0.00010917,2]
[348657998,1736700675111,-500.0,0.00010917,2]
[348657999,1736700675122,-527.25,0.00010917,2]
[348658000,1736700675132,-500.0,0.00010917,2]
[348658001,1736700675142,-500.0,0.00010917,2]
[348658002,1736700675152,-839.98,0.00010917,2]
[348658003,1736700675162,-500.0,0.00010917,2]
[348658004,1736700675172,-590.01,0.00010917,2]
[348658005,1736700675181,-500.0,0.00010917,2]
[348658006,1736700675191,-500.0,0.00010917,2]
[348658007,1736700675201,-500.0,0.00010917,2]
[348658008,1736700675214,-3566.43,0.00010917,2]
[348658009,1736700675224,-500.0,0.00010917,2]
[348658010,1736700675233,-2261.67,0.00010917,2]
[348658011,1736700675244,-932.25,0.00010917,2]
[348658012,1736700675254,-500.0,0.00010917,2]
[348658013,1736700675264,-500.0,0.00010917,2]
[348658014,1736700675273,-661.36,0.00010954,2]
[348658015,1736700675282,-7500.0,0.00010958,2]
[348658016,1736700675292,-7500.0,0.00010958,2]
[348658017,1736700675301,-500.0,0.00010958,2]
[348658018,1736700675310,-500.0,0.00010958,2]
[348658019,1736700675320,-150.0,0.00010959,2]
[348658020,1736700675329,-3936.43,0.00010959,2]
[348658021,1736700675340,-500.0,0.00010973,2]
[348658022,1736700675350,-151.85407727,0.00010973,2]
[348658023,1736700675359,-159.83968,0.00010973,2]
[348658024,1736700675368,-325.39469927,0.00010973,2]
[348658025,1736700675377,-151.87169565,0.00010973,2]
[348658026,1736700675387,-151.86979081,0.00010973,2]
[348658027,1736700675396,-750.02,0.00010979,2]
[348658028,1736700675405,-802.17,0.00010979,2]
[348658029,1736700675415,-500.0,0.00010979,2]
[348658030,1736700675425,-534.42,0.00010979,2]
[348658031,1736700675435,-519.7,0.00010979,2]
[348658032,1736700675445,-500.0,0.00010979,2]
[348658033,1736700675454,-871.26,0.00010979,2]
[348658034,1736700675466,-500.0,0.00010979,2]
[348658035,1736700675475,-500.0,0.00010979,2]
[348658036,1736700675485,-500.0,0.00010979,2]
[348658037,1736700675495,-500.0,0.00010979,2]
[348658038,1736700675504,-500.0,0.00010979,2]
[348658039,1736700675564,-854.85,0.00010979,2]
[348658040,1736700675573,-500.0,0.00010979,2]
[348658041,1736700675582,-500.0,0.00010979,2]
[348658042,1736700675591,-835.94,0.00010979,2]
[348658043,1736700675600,-714.45,0.00010979,2]
[348658044,1736700675609,-588.61,0.00010979,2]
[348658045,1736700675618,-652.98,0.00010979,2]
[348658046,1736700675628,-549.09,0.00010979,2]
[348658047,1736700675638,-500.0,0.00010979,2]
[348658048,1736700675647,-4943.86,0.00010979,2]
[348658049,1736700675656,-688.45,0.00010979,2]
[348658050,1736700675666,-3443.63,0.00010979,2]
[348658051,1736700675675,-710.84,0.00010979,2]
[348658052,1736700675684,-500.0,0.00010979,2]
[348658053,1736700675694,-1074.26,0.00010979,2]
[348658054,1736700675703,-3653.37,0.00010979,2]
[348658055,1736700675713,-880.69,0.00010979,2]
[348658056,1736700675722,-896.33,0.00010979,2]
[348658057,1736700675732,-1087.03,0.00010979,2]
[348658058,1736700675741,-3970.75760939,0.00010982,2]
[348658059,1736700676324,2781.59,0.00023,120]
[348658060,1736700676407,-500.0,8.998e-05,2]
[348658061,1736700676417,-500.0,8.999e-05,2]
[348658062,1736700676427,-500.0,8.999e-05,2]
[348658063,1736700676435,-1204.598,0.00010982,2]
[348658064,1736700676447,-6462.71601215,0.00010982,2]
[348658065,1736700676458,-1531.30391016,0.00010988,2]
[348658066,1736700676469,-1531.30391016,0.0001099,2]
[348658067,1736700676478,-459208.34389829,0.00010998,3]
[348658068,1736700676490,-830.95631847,0.00010998,3]
[348658069,1736700676501,-777.741585,0.00010998,3]
[348658070,1736700676512,-3759.5482,0.00010998,3]
[348658071,1736700676541,-500.0,9.272e-05,2]
[348658072,1736700676550,-418.0,9.273e-05,2]
[348658073,1736700676570,-82.0,9.273e-05,2]
[348658074,1736700676579,-500.0,9.273e-05,2]
[348658075,1736700676588,-928.0603134,0.00010998,3]
[348658076,1736700676599,-1839.99999992,0.00010998,3]
[348658077,1736700676611,-30717.52300421,0.00010998,3]
[348658078,1736700676624,-8195.25901937,0.00010998,3]
[348658079,1736700676636,-39727.51292869,0.00010998,3]
[348658080,1736700676647,-26351.70510331,0.00010998,3]
[348658081,1736700676659,-5395.94616976,0.00010998,3]
[348658082,1736700676669,-38418.07099946,0.00010999,2]
[348658083,1736700676677,-500.0,0.00010999,2]
[348658084,1736700676688,-550.0,0.00011,2]
[348658085,1736700676697,-41161.26442615,0.00011,2]
[348658086,1736700676707,-200.0,0.00011,2]
[348658087,1736700676719,-100992.0565552,0.00011,2]
[348658088,1736700676731,-36985.99698623,0.00011,2]
[348658089,1736700676744,-485.39623169,0.00011,2]
[348658090,1736700676755,-28152.95384154,0.00011,2]
[348658091,1736700676766,-418.18435819,0.00011,2]
[348658092,1736700676779,-1613.70970627,0.00011,2]
[348658093,1736700676809,-232.05,9.546e-05,2]
[348658094,1736700676817,-500.0,9.547e-05,2]
[348658095,1736700676826,-277.0440635,0.00011,2]
[348658096,1736700676839,-538.70369134,0.00011,2]
[348658097,1736700676850,-3876.25222147,0.00011,2]
[348658098,1736700676863,-42217.3649194,0.00011,2]
[348658099,1736700676874,-90943.37067011,0.00011,2]
[348658100,1736700676887,-247639.09518473,0.00011,2]
[348658101,1736700676900,-12508.95628078,0.00011,2]
[348658102,1736700676929,-500.0,8.998e-05,2]
[348658103,1736700676938,-500.0,9.547e-05,2]
[348658104,1736700676947,-361.91678001,0.00011,2]
[348658105,1736700676958,-470.0,0.00011,2]
[348658106,1736700676969,-1411.3,0.00011,2]
[348658107,1736700676980,-397.6016316,0.00011,2]
[348658108,1736700691420,866.5956,8.899e-05,2]
[348658109,1736700693986,34423.1965,8.899e-05,2]
[348658110,1736700727990,1220.6423,8.898e-05,2]
[348658111,1736700746558,2500.0,8.899e-05,2]
[348658112,1736700792834,500.0,0.00023,120]
[348658113,1736700796684,2000.0,0.00023,120]
[348658114,1736700800777,500.0,0.00023,120]
[348658115,1736700839764,200.0,0.00023,120]
[348658116,1736700960737,675.94,8.841e-05,2]
[348658118,1736701050800,150.0,0.00020773,120]
[348658119,1736701110747,150.0,0.00022549,120]
[348658120,1736701179741,250.0,8.72e-05,2]
[348658121,1736701291832,165.64,6.934e-05,2]
[348658122,1736701292029,165.64,8.667e-05,2]
[348658123,1736701305916,-150.0,8.997e-05,2]
[348658124,1736701305939,-300.0,8.997e-05,2]
[348658125,1736701305962,-205.53426664,8.997e-05,2]
[348658126,1736701305983,-144.46573336,8.998e-05,2]
[348658127,1736701318593,-61.06853328,8.998e-05,2]
[348658128,1736701318615,-338.93146672,8.998e-05,2]
[348658129,1736701318797,837.32,8.219e-05,2]
[348658130,1736701318923,250.0,8.696e-05,2]
[348658131,1736701327259,2500.0,8.899e-05,2]
[348658132,1736701393825,500.0,0.00022084,120]
[348658133,1736701397394,2000.0,0.00022476,120]
[348658134,1736701401296,623.210213,0.00022084,120]
[348658135,1736701441469,200.0,0.00022084,120]
[348658137,1736701503155,565.55800002,8.523e-05,2]
[348658139,1736701525365,795.28,8.773e-05,2]
[348658140,1736701529542,166.13,8.773e-05,2]
[348658141,1736701531467,150.0,0.00021081,120]
[348658142,1736701571063,159.39,8.762e-05,2]
[348658143,1736701577995,8335.9791,8.898e-05,2]
[348658144,1736701590775,150.0,0.00022953,120]
[348658145,1736701626453,230.39,8.788e-05,2]
[348658146,1736701831627,-150.0,8.997e-05,2]
[348658147,1736701831638,-500.0,8.998e-05,2]
[348658148,1736701831647,-500.0,8.998e-05,2]
[348658149,1736701831657,-500.0,8.998e-05,2]
[348658150,1736701831666,-512.38,8.998e-05,2]
[348658151,1736701831675,-103.18819684,8.998e-05,2]
[348658152,1736701831687,-396.81180316,8.998e-05,2]
[348658153,1736701831696,-500.0,8.998e-05,2]
[348658154,1736701831706,-573.45,8.998e-05,2]
[348658155,1736701831715,-435.65904243,8.998e-05,2]
[348658156,1736701832060,-64.34095757,8.998e-05,2]
[348658157,1736701832070,-500.0,8.998e-05,2]
[348658158,1736701832079,-500.0,8.998e-05,2]
[348658159,1736701832088,-500.0,8.998e-05,2]
[348658161,1736701832097,-500.0,8.998e-05,2]
[348658163,1736701832107,-500.0,8.998e-05,2]
[348658165,1736701832116,-473.75265495,8.998e-05,2]
[348658167,1736701832125,-500.0,8.998e-05,2]
[348658169,1736701832134,-500.0,8.998e-05,2]
[348658171,1736701832143,-631.76,8.998e-05,2]
[348658173,1736701832153,-793.75,8.998e-05,2]
[348658175,1736701832162,-750.78,8.998e-05,2]
[348658177,1736701832171,-500.0,8.998e-05,2]
[348658179,1736701832180,-500.0,8.998e-05,2]
[348658181,1736701832189,-247.5321935,8.998e-05,2]
[348658184,1736701832201,-404.1178065,8.998e-05,2]
[348658186,1736701832210,-500.0,8.998e-05,2]
[348658188,1736701832219,-502.86554226,8.998e-05,2]
[348658190,1736701832228,-500.0,8.998e-05,2]
[348658191,1736701832237,-500.0,8.998e-05,2]
[348658193,1736701832246,-500.0,8.998e-05,2]
[348658195,1736701832256,-718.34,8.998e-05,2]
[348658197,1736701832265,-500.0,8.998e-05,2]
[348658199,1736701832274,-500.0,8.998e-05,2]
[348658201,1736701832283,-500.0,8.998e-05,2]
[348658203,1736701832292,-407.60835656,8.998e-05,2]
[348658208,1736701832333,-92.39164344,8.998e-05,2]
[348658210,1736701832342,-500.0,8.998e-05,2]
[348658212,1736701832351,-564.54,8.998e-05,2]
[348658214,1736701832360,-500.0,8.998e-05,2]
[348658216,1736701832369,-533.35,8.998e-05,2]
[348658218,1736701832379,-910.72,8.998e-05,2]
[348658220,1736701832388,-500.0,8.998e-05,2]
[348658222,1736701832398,-500.0,8.998e-05,2]
[348658224,1736701832407,-63.2435646,8.998e-05,2]
[348658226,1736701832419,-436.7564354,8.998e-05,2]
[348658228,1736701832428,-500.0,8.998e-05,2]
[348658230,1736701832438,-284.7135646,8.998e-05,2]
[348658232,1736701832449,-234.3564354,8.998e-05,2]
[348658234,1736701832458,-365.6435646,8.998e-05,2]
[348658237,1736701832477,-134.3564354,8.998e-05,2]
[348658239,1736701832487,-518.26694306,8.998e-05,2]
[348658241,1736701832496,-500.0,8.998e-05,2]
[348658243,1736701832506,-86.72662154,8.998e-05,2]
[348658246,1736701832518,-413.27337846,8.998e-05,2]
[348658248,1736701832527,-486.72662154,8.998e-05,2]
[348658252,1736701832556,-13.27337846,8.998e-05,2]
[348658254,1736701832566,-500.0,8.998e-05,2]